[Event "Betsys MČR v online bleskovém šachu 2021"]
[Site "Chess.com"]
[Date "2021.04.17"]
[Round "10"]
[White "Richarlito"]
[Black "fera_v"]
[Result "1/2-1/2"]
[WhiteElo "2063"]
[BlackElo "2229"]
[TimeControl "180+1"]
[EndTime "10:39:47 PDT"]
[Termination "Remíza opakováním pozice"]

1. e4 {[%clk 0:03:00.9]} 1... e6 {[%clk 0:02:59.2]} 2. d4 {[%clk 0:03:00.6]}
2... d5 {[%clk 0:02:59.6]} 3. exd5 {[%clk 0:03:00.9]} 3... exd5 {[%clk
0:02:59.2]} 4. c4 {[%clk 0:03:01]} 4... Nf6 {[%clk 0:02:57.4]} 5. Nc3 {[%clk
0:03:01]} 5... Be6 {[%clk 0:02:55.4]} 6. cxd5 {[%clk 0:02:55.2]} 6... Nxd5
{[%clk 0:02:54.6]} 7. Bd3 {[%clk 0:02:48.1]} 7... Be7 {[%clk 0:02:53.5]} 8. Nge2
{[%clk 0:02:48]} 8... Nd7 {[%clk 0:02:49.5]} 9. O-O {[%clk 0:02:47.3]} 9... O-O
{[%clk 0:02:48]} 10. Nf4 {[%clk 0:02:45.7]} 10... Nxf4 {[%clk 0:02:41.9]} 11.
Bxf4 {[%clk 0:02:45.3]} 11... Nf6 {[%clk 0:02:41.4]} 12. Rc1 {[%clk 0:02:43.2]}
12... c6 {[%clk 0:02:40.4]} 13. Re1 {[%clk 0:02:42.8]} 13... Bd6 {[%clk
0:02:34.9]} 14. Bxd6 {[%clk 0:02:29.6]} 14... Qxd6 {[%clk 0:02:34]} 15. Bb1
{[%clk 0:02:03]} 15... Rad8 {[%clk 0:02:27.6]} 16. Ne4 {[%clk 0:01:50.5]} 16...
Nxe4 {[%clk 0:02:10.9]} 17. Rxe4 {[%clk 0:01:50.1]} 17... Bf5 {[%clk 0:02:05]}
18. Rh4 {[%clk 0:01:45.2]} 18... Bxb1 {[%clk 0:02:02.8]} 19. Rxb1 {[%clk
0:01:45.5]} 19... Qf6 {[%clk 0:01:54.9]} 20. g3 {[%clk 0:01:36.3]} 20... Rd5
{[%clk 0:01:54.1]} 21. Rc1 {[%clk 0:01:35.8]} 21... Rfd8 {[%clk 0:01:52]} 22.
Qd3 {[%clk 0:01:17.9]} 22... g6 {[%clk 0:01:49.8]} 23. Rf4 {[%clk 0:01:16.9]}
23... Rxd4 {[%clk 0:01:42.5]} 24. Rxf6 {[%clk 0:00:58.9]} 24... Rxd3 {[%clk
0:01:42.2]} 25. Rf4 {[%clk 0:00:57.5]} 25... Rd2 {[%clk 0:01:38.3]} 26. Rb4
{[%clk 0:00:57.1]} 26... R8d7 {[%clk 0:01:38]} 27. Kf1 {[%clk 0:00:57]} 27...
Re7 {[%clk 0:01:37.2]} 28. Re1 {[%clk 0:00:49.9]} 28... Rxe1+ {[%clk 0:01:21.5]}
29. Kxe1 {[%clk 0:00:48.2]} 29... Rc2 {[%clk 0:01:22.1]} 30. Rxb7 {[%clk
0:00:44.2]} 30... a5 {[%clk 0:01:17.9]} 31. a4 {[%clk 0:00:42.3]} 31... Kg7
{[%clk 0:01:08.9]} 32. b4 {[%clk 0:00:34.8]} 32... axb4 {[%clk 0:01:07.7]} 33.
Rxb4 {[%clk 0:00:34.3]} 33... Ra2 {[%clk 0:01:06.5]} 34. Rc4 {[%clk 0:00:34.5]}
34... c5 {[%clk 0:01:05.2]} 35. Rxc5 {[%clk 0:00:33.7]} 35... Rxa4 {[%clk
0:01:05.4]} 36. Rc6 {[%clk 0:00:33.1]} 36... Ra2 {[%clk 0:01:04.9]} 37. Kf1
{[%clk 0:00:32.8]} 37... h5 {[%clk 0:01:04.5]} 38. Kg2 {[%clk 0:00:31.8]} 38...
Kh6 {[%clk 0:01:04.4]} 39. h4 {[%clk 0:00:31.1]} 39... Kg7 {[%clk 0:01:02.4]}
40. Rd6 {[%clk 0:00:29.8]} 40... Rb2 {[%clk 0:01:01.7]} 41. Rc6 {[%clk
0:00:29.9]} 41... Ra2 {[%clk 0:01:01.6]} 42. Rd6 {[%clk 0:00:30.3]} 42... Rb2
{[%clk 0:01:01.3]} 43. Rc6 {[%clk 0:00:30.8]} 43... Ra2 {[%clk 0:01:01.5]}
1/2-1/2

[Event "Betsys MČR v online bleskovém šachu 2021"]
[Site "Chess.com"]
[Date "2021.04.17"]
[Round "10"]
[White "TomasOrnet1"]
[Black "l_pavlasek"]
[Result "1-0"]
[WhiteElo "1508"]
[BlackElo "1647"]
[TimeControl "180+1"]
[EndTime "10:39:47 PDT"]
[Termination "Uživatel TomasOrnet1 zvítězil po vzdání soupeře"]

1. e4 {[%clk 0:02:55.8]} 1... c5 {[%clk 0:02:58.5]} 2. Bc4 {[%clk 0:02:55.1]}
2... Nc6 {[%clk 0:02:57]} 3. Nf3 {[%clk 0:02:54.8]} 3... e6 {[%clk 0:02:56.7]}
4. d3 {[%clk 0:02:53.3]} 4... g6 {[%clk 0:02:56.5]} 5. Be3 {[%clk 0:02:53]} 5...
d6 {[%clk 0:02:55]} 6. c3 {[%clk 0:02:52.6]} 6... Bg7 {[%clk 0:02:54.1]} 7. Qd2
{[%clk 0:02:51.7]} 7... Nge7 {[%clk 0:02:53.4]} 8. Bh6 {[%clk 0:02:50.4]} 8...
O-O {[%clk 0:02:51.6]} 9. Bxg7 {[%clk 0:02:47.9]} 9... Kxg7 {[%clk 0:02:51.7]}
10. h4 {[%clk 0:02:45.9]} 10... d5 {[%clk 0:02:47]} 11. exd5 {[%clk 0:02:44.4]}
11... exd5 {[%clk 0:02:46.4]} 12. Bb3 {[%clk 0:02:43.2]} 12... Bg4 {[%clk
0:02:39.3]} 13. Qf4 {[%clk 0:02:39.9]} 13... Qd7 {[%clk 0:02:18.3]} 14. Nbd2
{[%clk 0:02:34.4]} 14... Bh5 {[%clk 0:02:10.9]} 15. O-O-O {[%clk 0:02:22]} 15...
a5 {[%clk 0:02:04.6]} 16. a4 {[%clk 0:02:18.7]} 16... Rab8 {[%clk 0:01:57.4]}
17. Rdg1 {[%clk 0:02:17.2]} 17... Bxf3 {[%clk 0:01:41.2]} 18. Nxf3 {[%clk
0:02:13.3]} 18... c4 {[%clk 0:01:39.1]} 19. dxc4 {[%clk 0:02:02.1]} 19... dxc4
{[%clk 0:01:25.5]} 20. Bxc4 {[%clk 0:01:56.5]} 20... Nf5 {[%clk 0:01:22.9]} 21.
h5 {[%clk 0:01:43.1]} 21... b5 {[%clk 0:01:03.9]} 22. Bxb5 {[%clk 0:01:29.8]}
22... Qe6 {[%clk 0:00:58.8]} 23. hxg6 {[%clk 0:01:08.3]} 23... fxg6 {[%clk
0:00:53.2]} 24. Ng5 {[%clk 0:00:44.5]} 24... Qa2 {[%clk 0:00:30.9]} 25. Rxh7+
{[%clk 0:00:40.4]} 25... Kg8 {[%clk 0:00:24.1]} 26. Bc4+ {[%clk 0:00:37.6]}
26... Qxc4 {[%clk 0:00:20.6]} 27. Qxc4+ {[%clk 0:00:36.7]} 1-0

[Event "Betsys MČR v online bleskovém šachu 2021"]
[Site "Chess.com"]
[Date "2021.04.17"]
[Round "10"]
[White "Pekibeast"]
[Black "AdaTra"]
[Result "1-0"]
[WhiteElo "1874"]
[BlackElo "1657"]
[TimeControl "180+1"]
[EndTime "10:39:48 PDT"]
[Termination "Uživatel Pekibeast zvítězil po vzdání soupeře"]

1. e4 {[%clk 0:03:00.9]} 1... c6 {[%clk 0:02:59.9]} 2. d4 {[%clk 0:03:00.6]}
2... d5 {[%clk 0:03:00.2]} 3. f3 {[%clk 0:02:59.8]} 3... dxe4 {[%clk 0:02:59.3]}
4. fxe4 {[%clk 0:03:00.7]} 4... e5 {[%clk 0:02:59.2]} 5. Nf3 {[%clk 0:03:00.1]}
5... Bg4 {[%clk 0:02:58.8]} 6. Bc4 {[%clk 0:02:59.5]} 6... Nd7 {[%clk
0:02:56.7]} 7. O-O {[%clk 0:02:55.3]} 7... Ngf6 {[%clk 0:02:55.4]} 8. Nc3 {[%clk
0:02:49.5]} 8... Bd6 {[%clk 0:02:53.2]} 9. Bg5 {[%clk 0:02:38.1]} 9... O-O
{[%clk 0:02:44.5]} 10. Kh1 {[%clk 0:02:37.3]} 10... Qc7 {[%clk 0:02:36.1]} 11.
h3 {[%clk 0:02:29.4]} 11... Bxf3 {[%clk 0:02:30.3]} 12. Rxf3 {[%clk 0:02:29.3]}
12... exd4 {[%clk 0:02:20.9]} 13. Qxd4 {[%clk 0:02:21.7]} 13... Be5 {[%clk
0:02:18]} 14. Qe3 {[%clk 0:02:21.4]} 14... Rae8 {[%clk 0:02:11.8]} 15. Raf1
{[%clk 0:02:12]} 15... a5 {[%clk 0:01:52.7]} 16. a3 {[%clk 0:02:06.4]} 16... b5
{[%clk 0:01:51.9]} 17. Ba2 {[%clk 0:02:06.5]} 17... Bxc3 {[%clk 0:01:40.5]} 18.
Qxc3 {[%clk 0:02:05.8]} 18... Nxe4 {[%clk 0:01:26.6]} 19. Rxf7 {[%clk
0:02:05.6]} 19... Rxf7 {[%clk 0:01:13.5]} 20. Bxf7+ {[%clk 0:02:03.3]} 20... Kh8
{[%clk 0:01:08]} 21. Bxe8 {[%clk 0:01:38.2]} 21... Ng3+ {[%clk 0:00:28.9]} 22.
Qxg3 {[%clk 0:01:36.8]} 22... Qxg3 {[%clk 0:00:28.4]} 23. Bxd7 {[%clk 0:01:37]}
23... h6 {[%clk 0:00:27.2]} 24. Rf8+ {[%clk 0:01:04.9]} 24... Kh7 {[%clk
0:00:26.5]} 25. Bf4 {[%clk 0:00:59.4]} 25... Qe1+ {[%clk 0:00:22.2]} 26. Kh2
{[%clk 0:00:58.6]} 26... Qe7 {[%clk 0:00:17.9]} 27. Bf5+ {[%clk 0:00:56.2]}
27... g6 {[%clk 0:00:17.7]} 28. Rc8 {[%clk 0:00:46.3]} 28... gxf5 {[%clk
0:00:16.9]} 29. Rc7 {[%clk 0:00:45.7]} 1-0

[Event "Betsys MČR v online bleskovém šachu 2021"]
[Site "Chess.com"]
[Date "2021.04.17"]
[Round "10"]
[White "krajic001"]
[Black "Svisthorsky"]
[Result "0-1"]
[WhiteElo "1191"]
[BlackElo "1464"]
[TimeControl "180+1"]
[EndTime "10:39:48 PDT"]
[Termination "Uživatel Svisthorsky zvítězil na čas"]

1. e4 {[%clk 0:03:00.9]} 1... e5 {[%clk 0:02:59.9]} 2. Bc4 {[%clk 0:02:58.7]}
2... Bc5 {[%clk 0:02:59.7]} 3. Nf3 {[%clk 0:02:56.7]} 3... Nc6 {[%clk
0:02:56.8]} 4. b4 {[%clk 0:02:44.9]} 4... Bxb4 {[%clk 0:02:47.5]} 5. c3 {[%clk
0:02:43.9]} 5... Be7 {[%clk 0:02:42]} 6. d4 {[%clk 0:02:39.5]} 6... exd4 {[%clk
0:02:41.9]} 7. O-O {[%clk 0:02:12.9]} 7... d6 {[%clk 0:02:31.5]} 8. cxd4 {[%clk
0:01:41.8]} 8... Nf6 {[%clk 0:02:26.3]} 9. Nc3 {[%clk 0:01:30.8]} 9... O-O
{[%clk 0:02:22.3]} 10. Re1 {[%clk 0:01:28.5]} 10... Bg4 {[%clk 0:02:20.9]} 11.
h3 {[%clk 0:01:24.1]} 11... Bh5 {[%clk 0:02:20.2]} 12. Ba3 {[%clk 0:01:10.3]}
12... a6 {[%clk 0:01:48.8]} 13. e5 {[%clk 0:01:02.8]} 13... dxe5 {[%clk
0:01:35.4]} 14. Bxe7 {[%clk 0:00:58.5]} 14... Qxe7 {[%clk 0:01:22.3]} 15. g4
{[%clk 0:00:39.7]} 15... Nxg4 {[%clk 0:01:14.2]} 16. hxg4 {[%clk 0:00:34.7]}
16... Bxg4 {[%clk 0:01:13.8]} 17. dxe5 {[%clk 0:00:29.1]} 17... Rad8 {[%clk
0:00:57.1]} 18. Qe2 {[%clk 0:00:19.4]} 18... Nd4 {[%clk 0:00:54.5]} 19. Nxd4
{[%clk 0:00:07.1]} 19... Bxe2 {[%clk 0:00:52.7]} 20. Ndxe2 {[%clk 0:00:06.5]}
20... Qg5+ {[%clk 0:00:51.8]} 21. Ng3 {[%clk 0:00:04.2]} 21... Qd2 {[%clk
0:00:40.9]} 0-1

[Event "Betsys MČR v online bleskovém šachu 2021"]
[Site "Chess.com"]
[Date "2021.04.17"]
[Round "10"]
[White "Devasales"]
[Black "Jeff_CZE"]
[Result "1-0"]
[WhiteElo "1741"]
[BlackElo "1819"]
[TimeControl "180+1"]
[EndTime "10:39:49 PDT"]
[Termination "Uživatel Devasales zvítězil matem"]

1. e4 {[%clk 0:03:00.9]} 1... e6 {[%clk 0:02:59.2]} 2. d4 {[%clk 0:02:59.9]}
2... d5 {[%clk 0:03:00.1]} 3. e5 {[%clk 0:02:59.8]} 3... c5 {[%clk 0:03:00.1]}
4. c3 {[%clk 0:03:00.1]} 4... Qb6 {[%clk 0:03:00.3]} 5. Nf3 {[%clk 0:02:59.3]}
5... Bd7 {[%clk 0:03:00.2]} 6. b3 {[%clk 0:02:57.6]} 6... Bb5 {[%clk 0:03:00.7]}
7. Be2 {[%clk 0:02:52.3]} 7... Bxe2 {[%clk 0:02:55]} 8. Qxe2 {[%clk 0:02:51.4]}
8... Nc6 {[%clk 0:02:55.6]} 9. Bb2 {[%clk 0:02:49.9]} 9... cxd4 {[%clk
0:02:55.2]} 10. cxd4 {[%clk 0:02:46.9]} 10... Bb4+ {[%clk 0:02:53.5]} 11. Nbd2
{[%clk 0:02:45.8]} 11... Rc8 {[%clk 0:02:46.6]} 12. O-O {[%clk 0:02:42.5]} 12...
Bxd2 {[%clk 0:02:46.7]} 13. Qxd2 {[%clk 0:02:36.2]} 13... Nge7 {[%clk
0:02:46.3]} 14. Rac1 {[%clk 0:02:30.4]} 14... O-O {[%clk 0:02:45.2]} 15. Ba3
{[%clk 0:02:29.6]} 15... Rfe8 {[%clk 0:02:41.3]} 16. h3 {[%clk 0:02:20.6]} 16...
Nf5 {[%clk 0:02:34]} 17. Bc5 {[%clk 0:02:16.1]} 17... Qa6 {[%clk 0:02:28.9]} 18.
g4 {[%clk 0:02:13.6]} 18... Nh6 {[%clk 0:02:22.5]} 19. a4 {[%clk 0:01:53.9]}
19... b6 {[%clk 0:02:22.2]} 20. Bd6 {[%clk 0:01:51.9]} 20... Na5 {[%clk
0:02:16.6]} 21. Qe3 {[%clk 0:01:42.1]} 21... Nb7 {[%clk 0:02:05]} 22. Bb4 {[%clk
0:01:37.1]} 22... b5 {[%clk 0:02:00.4]} 23. Ra1 {[%clk 0:01:31.4]} 23... bxa4
{[%clk 0:01:51.3]} 24. Rxa4 {[%clk 0:01:30.2]} 24... Qb6 {[%clk 0:01:48.7]} 25.
Rfa1 {[%clk 0:01:23.6]} 25... Ra8 {[%clk 0:01:38.7]} 26. Bc5 {[%clk 0:01:17.4]}
26... Nxc5 {[%clk 0:01:37.4]} 27. dxc5 {[%clk 0:01:16.8]} 27... Qc7 {[%clk
0:01:33.5]} 28. b4 {[%clk 0:01:11.9]} 28... Red8 {[%clk 0:01:26.9]} 29. Nd4
{[%clk 0:01:09.6]} 29... Kf8 {[%clk 0:01:04.2]} 30. Nb5 {[%clk 0:00:57.7]} 30...
Qb7 {[%clk 0:01:04.3]} 31. Nd6 {[%clk 0:00:54.9]} 31... Qd7 {[%clk 0:00:56.2]}
32. b5 {[%clk 0:00:46.6]} 32... Ng8 {[%clk 0:00:55]} 33. c6 {[%clk 0:00:41.2]}
33... Qc7 {[%clk 0:00:52.5]} 34. Rxa7 {[%clk 0:00:39.6]} 34... Rxa7 {[%clk
0:00:51.3]} 35. Rxa7 {[%clk 0:00:38.7]} 35... Qb8 {[%clk 0:00:33.9]} 36. Rxf7#
{[%clk 0:00:37.2]} 1-0

[Event "Betsys MČR v online bleskovém šachu 2021"]
[Site "Chess.com"]
[Date "2021.04.17"]
[Round "10"]
[White "sodikus"]
[Black "machajda"]
[Result "1-0"]
[WhiteElo "2264"]
[BlackElo "2040"]
[TimeControl "180+1"]
[EndTime "10:39:51 PDT"]
[Termination "Uživatel sodikus zvítězil po vzdání soupeře"]

1. d4 {[%clk 0:02:41.1]} 1... Nf6 {[%clk 0:02:59]} 2. c3 {[%clk 0:02:40.1]} 2...
d5 {[%clk 0:02:57.8]} 3. Bg5 {[%clk 0:02:40.1]} 3... c6 {[%clk 0:02:55.3]} 4.
Nd2 {[%clk 0:02:38.6]} 4... Bf5 {[%clk 0:02:55.4]} 5. Bxf6 {[%clk 0:02:37.7]}
5... exf6 {[%clk 0:02:53.8]} 6. g3 {[%clk 0:02:37.5]} 6... Nd7 {[%clk
0:02:51.7]} 7. Bg2 {[%clk 0:02:37.8]} 7... Bd6 {[%clk 0:02:52]} 8. Ngf3 {[%clk
0:02:36.9]} 8... O-O {[%clk 0:02:51.2]} 9. O-O {[%clk 0:02:36.6]} 9... b5 {[%clk
0:02:46.2]} 10. Nh4 {[%clk 0:02:34.2]} 10... Be6 {[%clk 0:02:44.9]} 11. e4
{[%clk 0:02:33.9]} 11... dxe4 {[%clk 0:02:45.8]} 12. Nxe4 {[%clk 0:02:33.6]}
12... Be7 {[%clk 0:02:45.3]} 13. Qf3 {[%clk 0:02:15.5]} 13... f5 {[%clk
0:02:39.9]} 14. Nxf5 {[%clk 0:02:14.8]} 14... Bxf5 {[%clk 0:02:36.1]} 15. Qxf5
{[%clk 0:02:14.6]} 15... Qc7 {[%clk 0:02:35.1]} 16. Rfe1 {[%clk 0:02:07.5]}
16... Rfe8 {[%clk 0:02:34.2]} 17. h4 {[%clk 0:02:02.9]} 17... Rad8 {[%clk
0:02:32.4]} 18. Rad1 {[%clk 0:01:56.2]} 18... Nf6 {[%clk 0:02:31.5]} 19. Ng5
{[%clk 0:01:51.4]} 19... Bf8 {[%clk 0:02:20.8]} 20. a3 {[%clk 0:01:38.9]} 20...
a6 {[%clk 0:02:19.2]} 21. g4 {[%clk 0:01:22.8]} 21... Qd6 {[%clk 0:01:57.3]} 22.
h5 {[%clk 0:01:14.9]} 22... Qc7 {[%clk 0:01:15.8]} 23. Nf3 {[%clk 0:01:00.3]}
23... Qd6 {[%clk 0:01:09.5]} 24. Ne5 {[%clk 0:00:57.9]} 24... c5 {[%clk
0:00:58.2]} 25. Bf3 {[%clk 0:00:38.7]} 25... Qb6 {[%clk 0:00:40.1]} 26. g5
{[%clk 0:00:31.5]} 26... Nd5 {[%clk 0:00:28.1]} 27. Qxf7+ {[%clk 0:00:26.1]}
27... Kh8 {[%clk 0:00:25.3]} 28. Bxd5 {[%clk 0:00:27]} 1-0

[Event "Betsys MČR v online bleskovém šachu 2021"]
[Site "Chess.com"]
[Date "2021.04.17"]
[Round "10"]
[White "TheFr0zenSun"]
[Black "BRNOTEACHER"]
[Result "0-1"]
[WhiteElo "2247"]
[BlackElo "2362"]
[TimeControl "180+1"]
[EndTime "10:39:52 PDT"]
[Termination "Uživatel BRNOTEACHER zvítězil po vzdání soupeře"]

1. d4 {[%clk 0:03:00.9]} 1... Nf6 {[%clk 0:02:59.3]} 2. Nf3 {[%clk 0:03:00.3]}
2... g6 {[%clk 0:02:57.4]} 3. c4 {[%clk 0:02:59.9]} 3... Bg7 {[%clk 0:02:56.4]}
4. Nc3 {[%clk 0:03:00.4]} 4... d5 {[%clk 0:02:56.5]} 5. cxd5 {[%clk 0:02:58.5]}
5... Nxd5 {[%clk 0:02:57.4]} 6. Bd2 {[%clk 0:02:58.8]} 6... Nb6 {[%clk
0:02:55.1]} 7. Bg5 {[%clk 0:02:56.5]} 7... Nc6 {[%clk 0:02:51.5]} 8. e3 {[%clk
0:02:56.3]} 8... h6 {[%clk 0:02:48.6]} 9. Bh4 {[%clk 0:02:54.9]} 9... O-O {[%clk
0:02:46.9]} 10. Bb5 {[%clk 0:02:51]} 10... Bd7 {[%clk 0:02:21.1]} 11. O-O {[%clk
0:02:46.8]} 11... a6 {[%clk 0:02:20.8]} 12. Be2 {[%clk 0:02:45.9]} 12... Be6
{[%clk 0:02:15.7]} 13. h3 {[%clk 0:02:40.7]} 13... Qd7 {[%clk 0:02:14.6]} 14. b3
{[%clk 0:02:28.6]} 14... Rad8 {[%clk 0:02:12.6]} 15. Rc1 {[%clk 0:02:21.2]}
15... f5 {[%clk 0:01:59.8]} 16. Bg3 {[%clk 0:02:17.1]} 16... g5 {[%clk
0:01:58.4]} 17. Qc2 {[%clk 0:01:44.6]} 17... f4 {[%clk 0:01:56.4]} 18. exf4
{[%clk 0:01:44.4]} 18... gxf4 {[%clk 0:01:54.3]} 19. Bh4 {[%clk 0:01:43.2]}
19... Nxd4 {[%clk 0:01:12.6]} 20. Nxd4 {[%clk 0:01:42.1]} 20... Bxd4 {[%clk
0:01:11.9]} 21. Rfd1 {[%clk 0:01:40.9]} 21... Bf5 {[%clk 0:01:02]} 22. Bd3
{[%clk 0:01:18.1]} 22... Bxh3 {[%clk 0:00:57.5]} 23. gxh3 {[%clk 0:00:46.5]}
23... Qxh3 {[%clk 0:00:58.4]} 24. Bxe7 {[%clk 0:00:45.8]} 24... f3 {[%clk
0:00:43.7]} 25. Bh7+ {[%clk 0:00:34.6]} 25... Kh8 {[%clk 0:00:41.5]} 26. Qg6
{[%clk 0:00:24.6]} 26... Rg8 {[%clk 0:00:37]} 0-1

[Event "Betsys MČR v online bleskovém šachu 2021"]
[Site "Chess.com"]
[Date "2021.04.17"]
[Round "10"]
[White "Hanicka1517"]
[Black "Mikkes33"]
[Result "0-1"]
[WhiteElo "1611"]
[BlackElo "1566"]
[TimeControl "180+1"]
[EndTime "10:39:52 PDT"]
[Termination "Uživatel Mikkes33 zvítězil matem"]

1. d4 {[%clk 0:03:00.9]} 1... Nf6 {[%clk 0:02:55.1]} 2. Nf3 {[%clk 0:03:01.1]}
2... e6 {[%clk 0:02:53.1]} 3. g3 {[%clk 0:03:01.3]} 3... b6 {[%clk 0:02:52.4]}
4. Bg2 {[%clk 0:03:00.7]} 4... Bb7 {[%clk 0:02:52.5]} 5. O-O {[%clk 0:03:00.7]}
5... d5 {[%clk 0:02:51.9]} 6. Nbd2 {[%clk 0:02:59.6]} 6... Be7 {[%clk
0:02:51.5]} 7. c4 {[%clk 0:02:57.3]} 7... O-O {[%clk 0:02:51.4]} 8. cxd5 {[%clk
0:02:57.1]} 8... exd5 {[%clk 0:02:50.7]} 9. Qc2 {[%clk 0:02:49.7]} 9... Nbd7
{[%clk 0:02:49.5]} 10. Nb3 {[%clk 0:02:47.1]} 10... c5 {[%clk 0:02:46.8]} 11.
dxc5 {[%clk 0:02:46.7]} 11... bxc5 {[%clk 0:02:46]} 12. Bf4 {[%clk 0:02:38.9]}
12... Rc8 {[%clk 0:02:42.6]} 13. Rac1 {[%clk 0:02:36.4]} 13... d4 {[%clk
0:02:34.8]} 14. Nbd2 {[%clk 0:02:23.5]} 14... Re8 {[%clk 0:02:17.9]} 15. Nc4
{[%clk 0:02:23.4]} 15... Nb6 {[%clk 0:02:02.6]} 16. b3 {[%clk 0:02:17.3]} 16...
Nxc4 {[%clk 0:01:55.7]} 17. bxc4 {[%clk 0:02:17.6]} 17... Bd6 {[%clk 0:01:44.6]}
18. Bxd6 {[%clk 0:02:11.7]} 18... Qxd6 {[%clk 0:01:44.2]} 19. Rb1 {[%clk
0:02:12]} 19... Bc6 {[%clk 0:01:36.2]} 20. Rb2 {[%clk 0:01:52.9]} 20... Ne4
{[%clk 0:01:26.5]} 21. Nd2 {[%clk 0:01:42.9]} 21... Nc3 {[%clk 0:01:20.4]} 22.
Bxc6 {[%clk 0:01:39.5]} 22... Qxc6 {[%clk 0:01:18.8]} 23. Re1 {[%clk 0:00:55.6]}
23... Nxe2+ {[%clk 0:01:14.2]} 24. Rxe2 {[%clk 0:00:55.9]} 24... Rxe2 {[%clk
0:01:12.8]} 25. Qb3 {[%clk 0:00:51]} 25... Re1+ {[%clk 0:01:05.2]} 26. Nf1
{[%clk 0:00:50.4]} 26... g6 {[%clk 0:00:56]} 27. Qc2 {[%clk 0:00:36.5]} 27...
Rce8 {[%clk 0:00:53.9]} 28. Qd2 {[%clk 0:00:32.3]} 28... Qf3 {[%clk 0:00:45.4]}
29. h4 {[%clk 0:00:23]} 29... R1e2 {[%clk 0:00:42.9]} 30. Qc1 {[%clk 0:00:21.6]}
30... Qxf2+ {[%clk 0:00:41.5]} 31. Kh1 {[%clk 0:00:20.6]} 31... Qg2# {[%clk
0:00:40.6]} 0-1

[Event "Betsys MČR v online bleskovém šachu 2021"]
[Site "Chess.com"]
[Date "2021.04.17"]
[Round "10"]
[White "zaciname"]
[Black "DenisaD2008"]
[Result "1-0"]
[WhiteElo "745"]
[BlackElo "949"]
[TimeControl "180+1"]
[EndTime "10:39:52 PDT"]
[Termination "Uživatel zaciname zvítězil matem"]

1. e4 {[%clk 0:03:00.9]} 1... e5 {[%clk 0:03:00.2]} 2. Nf3 {[%clk 0:03:01.3]}
2... Nc6 {[%clk 0:03:00.5]} 3. Bc4 {[%clk 0:03:01.7]} 3... Bc5 {[%clk
0:03:00.8]} 4. d3 {[%clk 0:03:02]} 4... Nf6 {[%clk 0:03:01]} 5. h3 {[%clk
0:03:01.8]} 5... d6 {[%clk 0:03:01]} 6. Ng5 {[%clk 0:03:00.7]} 6... O-O {[%clk
0:02:59.3]} 7. Be3 {[%clk 0:03:00.9]} 7... Bxe3 {[%clk 0:02:58.1]} 8. fxe3
{[%clk 0:02:59.9]} 8... Be6 {[%clk 0:02:55.5]} 9. Bxe6 {[%clk 0:02:57.1]} 9...
Nd7 {[%clk 0:02:46.3]} 10. Qh5 {[%clk 0:02:43.1]} 10... h6 {[%clk 0:02:30.5]}
11. Nxf7 {[%clk 0:02:39.2]} 11... Rxf7 {[%clk 0:02:15.7]} 12. Qxf7+ {[%clk
0:02:34.8]} 12... Kh8 {[%clk 0:02:12.9]} 13. Bxd7 {[%clk 0:02:14.1]} 13... Qh4+
{[%clk 0:02:09.2]} 14. Qf2 {[%clk 0:02:09.2]} 14... Qxf2+ {[%clk 0:02:04.3]} 15.
Kxf2 {[%clk 0:02:08.2]} 15... Rf8+ {[%clk 0:02:02.3]} 16. Ke2 {[%clk 0:02:06.2]}
16... Rf7 {[%clk 0:02:01.9]} 17. Bg4 {[%clk 0:02:03.5]} 17... g6 {[%clk
0:01:57.8]} 18. Rf1 {[%clk 0:02:02.7]} 18... Rg7 {[%clk 0:01:55.1]} 19. Nc3
{[%clk 0:01:59.4]} 19... h5 {[%clk 0:01:52.6]} 20. Bf3 {[%clk 0:01:59.3]} 20...
g5 {[%clk 0:01:50.6]} 21. Kd2 {[%clk 0:01:51.1]} 21... g4 {[%clk 0:01:45.9]} 22.
hxg4 {[%clk 0:01:50.4]} 22... hxg4 {[%clk 0:01:45]} 23. Be2 {[%clk 0:01:50.4]}
23... g3 {[%clk 0:01:43.6]} 24. Rf3 {[%clk 0:01:48.7]} 24... Kh7 {[%clk
0:01:41.5]} 25. Rh1+ {[%clk 0:01:48.3]} 25... Kg8 {[%clk 0:01:38.8]} 26. Nd5
{[%clk 0:01:40.8]} 26... a5 {[%clk 0:01:29.2]} 27. a3 {[%clk 0:01:38.4]} 27...
b5 {[%clk 0:01:26.9]} 28. Nxc7 {[%clk 0:01:36.6]} 28... Rxc7 {[%clk 0:01:24.1]}
29. Rxg3+ {[%clk 0:01:33.8]} 29... Kf8 {[%clk 0:01:24.5]} 30. Rf1+ {[%clk
0:01:33]} 30... Ke7 {[%clk 0:01:23.3]} 31. Rg8 {[%clk 0:01:32.4]} 31... Nd8
{[%clk 0:01:10.6]} 32. Rg7+ {[%clk 0:01:29.5]} 32... Ke6 {[%clk 0:01:03.6]} 33.
Rxc7 {[%clk 0:01:27.3]} 33... d5 {[%clk 0:00:57.7]} 34. exd5+ {[%clk 0:01:26]}
34... Kxd5 {[%clk 0:00:57.2]} 35. Rd7+ {[%clk 0:01:25.2]} 35... Kc6 {[%clk
0:00:54.2]} 36. Rxd8 {[%clk 0:01:24.7]} 36... Kc7 {[%clk 0:00:53.9]} 37. Rff8
{[%clk 0:01:22.9]} 37... a4 {[%clk 0:00:50]} 38. Bg4 {[%clk 0:01:20.7]} 38...
Kc6 {[%clk 0:00:45.5]} 39. Rd7 {[%clk 0:01:16.8]} 39... b4 {[%clk 0:00:41]} 40.
Rff7 {[%clk 0:01:15.6]} 40... bxa3 {[%clk 0:00:38.6]} 41. bxa3 {[%clk
0:01:14.1]} 41... e4 {[%clk 0:00:37]} 42. Rf6+ {[%clk 0:01:12.5]} 42... Kc5
{[%clk 0:00:35.6]} 43. d4+ {[%clk 0:01:11.6]} 43... Kb5 {[%clk 0:00:32.9]} 44.
Rd5+ {[%clk 0:01:07.6]} 44... Kc4 {[%clk 0:00:31.7]} 45. Rc5# {[%clk 0:01:05.7]}
1-0